[Event "Baku Open 2024"]
[Site "Baku"]
[Date "2024.07.05"]
[Round "7.25"]
[White "Davidov, Samir"]
[Black "Salimova, Nurgyul"]
[Result "1/2-1/2"]
[ECO "D00"]
[WhiteElo "2244"]
[BlackElo "2436"]
[Annotator "TA"]
[PlyCount "110"]
[EventDate "2024.06.29"]
[EventType "swiss"]
[EventCountry "AZE"]
[SourceTitle "playchess.com"]
[Source "ChessBase"]
[SourceQuality "1"]
[TimeControl "5400+30"]

{[%evp 9,110,0,20,31,29,39,42,31,37,52,35,0,73,62,62,50,77,49,66,43,44,47,58,36,86,63,69,66,83,76,76,0,38,49,49,10,2,0,0,0,0,0,0,0,0,0,-6,-26,18,6,18,-6,0,0,0,0,0,0,0,-4,0,0,0,0,5,0,8,0,46,46,42,42,49,49,49,49,49,49,74,74,89,89,89,64,89,60,74,74,74,8,74,74,74,74,74,74,74,0,74,0,74,0,74]} 1. d4 {[%emt 0:06:12]} Nf6 {[%emt 0:00:04]} 2. Bf4 {[%emt 0:00:26]} d5 {[%emt 0:00:10]} 3. e3 {[%emt 0:00:32]} c5 {[%emt 0:00:09][%cal Bc7c5,Bc5c4][%mdl 32]} 4. c3 {[%emt 0:00:57]} Nc6 {[%emt 0:02:39]} 5. Nd2 {[%emt 0:00:54]} Qb6 {[%emt 0:07:07]} 6. Qb3 {[%emt 0:01:14]} c4 {[%emt 0:06:56]} 7. Qc2 {[%emt 0:01:25]} g6 {[%emt 0:01:36]} 8. e4 {[%emt 0:10:16] Prevents Bf5. White is slightly better.} Nxe4 {[%emt 0:25:42]} 9. Nxe4 {[%emt 0:00:48]} dxe4 {[%emt 0:03:16]} 10. d5 {[%emt 0:03:11]} (10. Qxe4 Qxb2 11. Rd1 Qxc3+ 12. Bd2 Qxd4 13. Qxd4 Nxd4 $15) 10... Nb8 {[%emt 0:05:34]} (10... Na5 $1 $11) 11. Bxc4 $16 {[%emt 0:14:08][%cal Of4e5]} Bf5 {[%emt 0:02:13]} 12. Be3 {[%emt 0:00:37]} Qc7 {[%emt 0:01:56]} 13. Be2 {[%emt 0:00:45] aiming for Qa4+.} Bg7 {[%emt 0:01:07]} 14. Rd1 {[%emt 0:02:45]} h5 {[%emt 0:01:34]} 15. Nh3 {[%emt 0:10:32]} Nd7 {[%emt 0:02:50]} 16. Ng5 {[%emt 0:10:13]} Nf6 {[%emt 0:00:34]} (16... O-O $14) 17. Bb5+ {[%emt 0:07:19]} Kf8 {[%emt 0:01:15]} 18. Qb3 {[%emt 0:00:37][%cal Od5d6] d6! is the strong threat. White has more active pieces.} Qd6 {[%emt 0:06:38] [#]} 19. h3 {[%emt 0:04:17] Dodges Ng4} Bh6 {[%emt 0:02:14]} 20. g3 {[%emt 0:04:38]} (20. Ba4 $16) 20... Bxg5 {[%emt 0:01:55]} 21. Bxg5 {[%emt 0:00:05]} Nd7 {[%emt 0:07:18]} 22. Bxd7 {[%emt 0:00:26]} Qxd7 {[%emt 0:01:37] [#] Black is weak on the dark squares} 23. d6 $1 {[%emt 0:00:18]} f6 $1 {[%emt 0:00:42]} 24. dxe7+ {[%emt 0:04:05]} Qxe7 {[%emt 0:00:06]} 25. Bf4 {[%emt 0:00:03] Threatens to win with Bd6.} Kg7 {[%emt 0:00:23]} 26. Bd6 {[%emt 0:00:30]} Qf7 {[%emt 0:00:24]} 27. Qxf7+ {[%emt 0:00:06]} Kxf7 {[%emt 0:00:03]} 28. Kd2 {[%emt 0:00:36]} e3+ {[%emt 0:01:42]} 29. fxe3 {[%emt 0:00:26]} b6 {[%emt 0:00:41] Against Bc5} 30. Kc1 {[%emt 0:02:11]} Rae8 {[%emt 0:00:37]} 31. h4 {[%emt 0:04:59]} Rxe3 {[%emt 0:00:49]} 32. Bf4 {[%emt 0:00:07]} Re2 {[%emt 0:00:28]} 33. Rd2 {[%emt 0:00:06]} Rxd2 {[%emt 0:00:08]} 34. Kxd2 $11 {[%emt 0:00:10][%mdl 4096] Endgame. KRB-KRB} Rd8+ {[%emt 0:00:50]} 35. Kc1 {[%emt 0:01:03]} Be6 {[%emt 0:00:18]} 36. b3 {[%emt 0:00:23][%cal Bb2b3,Bb3b4,Bb4b5][%mdl 32]} Rd5 {[%emt 0:00:53]} 37. Rd1 {[%emt 0:01:02]} Ra5 {[%emt 0:00:27]} 38. Kb2 {[%emt 0:00:28]} Rd5 {[%emt 0:10:24]} (38... Rf5 $11 {deserves consideration.}) 39. Rxd5 $14 {[%emt 0:00:51]} Bxd5 {[%emt 0:00:05] KB-KB} 40. c4 {[%emt 0:00:03]} Be4 {[%emt 0:02:25]} 41. b4 {[%emt 0:02:52]} Ke6 {[%emt 0:00:37]} 42. b5 {[%emt 0:03:28]} Kd7 {[%emt 0:00:11]} 43. a4 {[%emt 0:00:10][%cal Ba2a4,Ba4a5][%mdl 32]} Bb7 {[%emt 0:01:19]} 44. Be3 {[%emt 0:00:29]} Kc7 {[%emt 0:01:06] [#]} 45. a5 $1 {[%emt 0:00:25]} Bf3 {[%emt 0:00:38]} (45... Be4 46. a6) 46. Kc3 {[%emt 0:01:35]} Be2 {[%emt 0:00:29]} 47. Bd4 {[%emt 0:02:01]} g5 {[%emt 0:00:37]} 48. Bxf6 {[%emt 0:00:25]} gxh4 {[%emt 0:00:05] [#]} 49. Be5+ {[%emt 0:00:14]} ({Reject} 49. Bxh4 bxa5 50. Be7 a6 $11) ({White should play} 49. axb6+ $1 $16 Kxb6 50. Bd4+ (50. Bxh4 Kc7 $11) (50. gxh4 a6 $11) 50... Kb7 51. gxh4) 49... Kc8 {[%emt 0:00:21]} (49... Kb7 $1 $11) 50. axb6 $16 {[%emt 0:01:42]} ({Of course not} 50. gxh4 bxa5 51. Bh8 a4 $11) 50... axb6 {[%emt 0:00:17]} 51. gxh4 {[%emt 0:00:04]} Kb7 {[%emt 0:00:15]} 52. Kd4 {[%emt 0:00:05]} Bf1 {[%emt 0:00:11]} 53. Kc3 {[%emt 0:00:04]} Be2 {[%emt 0:00:03]} 54. Kd4 {[%emt 0:00:03]} Bf1 $1 {[%emt 0:00:05]} 55. Kc3 {[%emt 0:00:02]} Be2 {[%emt 0:00:42] Weighted Error Value: White=0.15 (very precise) /Black=0.13 (very precise) .  Mistake:       	White=2     	Black=4      Inaccurate:     	White=4     	Black=2      OK:         	White=19    	Black=11     Best:        	White=6     	Black=2      Strong:       	---       	Black=2} 1/2-1/2

[Event "Baku Open 2024"]
[Site "Baku"]
[Date "2024.07.05"]
[Round "7.27"]
[White "Saravana, Krishnan P."]
[Black "Fataliyeva, Ulviyya"]
[Result "1/2-1/2"]
[ECO "C47"]
[WhiteElo "2236"]
[BlackElo "2399"]
[Annotator "TA"]
[PlyCount "113"]
[EventDate "2024.06.29"]
[EventType "swiss"]
[EventCountry "AZE"]
[SourceTitle "playchess.com"]
[Source "ChessBase"]
[SourceQuality "1"]
[TimeControl "5400+30"]

{[%evp 12,113,-6,-11,0,-7,0,0,0,0,0,0,-12,0,0,-10,0,-19,0,-5,-5,-18,-8,-2,0,-5,4,0,20,-16,-12,-16,-1,-64,-23,-11,-15,-25,-30,-18,-10,-30,-36,-32,-20,-87,-92,-98,-107,-111,-85,-242,-83,-89,-91,-96,-98,-122,-133,-125,-118,-163,-169,-128,-127,-129,-100,-107,-104,-104,-108,-102,-102,-105,-90,-94,-91,-94,-91,-104,-60,-65,0,-66,-58,-51,-38,-31,-32,-39,-34,-35,-41,-35,-36,-43,-35,-39,0,0,0,0,0,0]} 1. e4 {[%emt 0:00:03]} e5 {[%emt 0:00:03]} 2. Nf3 {[%emt 0:00:19]} Nc6 {[%emt 0:00:04]} 3. Nc3 {[%emt 0:04:57]} Nf6 {[%emt 0:00:05]} 4. Be2 {[%emt 0:00:04]} d5 {[%emt 0:00:21]} 5. exd5 {[%emt 0:00:29]} Nxd5 {[%emt 0:00:02]} 6. O-O {[%emt 0:00:17]} Nxc3 {[%emt 0:00:23]} 7. bxc3 {[%emt 0:00:07]} e4 {[%emt 0:00:08]} 8. Ne1 {[%emt 0:00:20]} Bd6 {[%emt 0:00:16]} 9. f3 {[%emt 0:00:14]} Bf5 {[%emt 0:05:08]} 10. fxe4 {[%emt 0:02:20]} Bxe4 {[%emt 0:00:07]} 11. Bf3 {[%emt 0:00:18]} Bxf3 {[%emt 0:03:50]} 12. Nxf3 {[%emt 0:01:16]} O-O {[%emt 0:00:10]} 13. d4 {[%emt 0:00:29]} Qd7 {[%emt 0:03:03]} 14. Rb1 {[%emt 0:01:12]} Rab8 {[%emt 0:01:55]} 15. Qd3 {[%emt 0:03:16]} f6 {[%emt 0:07:06] Inhibits Ng5.} 16. Nd2 {[%emt 0:10:22]} Nd8 {[%emt 0:02:39]} 17. Ne4 {[%emt 0:02:37]} Be7 {[%emt 0:00:50]} 18. Qc4+ {[%emt 0:15:44]} Kh8 {[%emt 1:13:20]} 19. a4 {[%emt 0:00:06]} a6 {[%emt 0:00:00]} 20. d5 {[%emt 0:05:19]} b5 {[%emt 0:00:00]} 21. Qd4 {[%emt 0:04:34]} Nb7 {[%emt 0:00:00]} 22. Kh1 {[%emt 0:05:15]} (22. axb5 $11 axb5 23. Kh1) 22... Rbd8 {[%emt 0:00:00]} 23. axb5 {[%emt 0:07:22]} axb5 {[%emt 0:00:00]} 24. c4 {[%emt 0:01:20]} c6 {[%emt 0:00:00]} 25. Rd1 {[%emt 0:01:37][%cal Od5d6]} Qf5 {[%emt 0:00:00]} 26. Re1 {[%emt 0:14:41]} Rfe8 {[%emt 0:00:00][%cal Oe7c5] [#] Hoping for ...Bc5!} 27. Be3 {[%emt 0:12:31][%cal Od4a7]} Bf8 {[%emt 0:00:00]} 28. Ng3 {[%emt 0:04:57]} (28. Bg1 $1 $11) 28... Qxc2 $17 {[%emt 0:00:00] Strongly threatening ...Nc5.} 29. Qa7 {[%emt 0:00:21] Bb6 would now be deadly.} Nd6 {[%emt 0:00:00]} 30. dxc6 {[%emt 0:01:02]} Nxc4 {[%emt 0:00:00]} 31. c7 $2 {[%emt 0:00:52]} (31. Rec1 $17 {is a better defense.} Qa4 32. Qxa4 bxa4 33. Bf2 (33. Rxc4 Rxe3 34. Ne4 Rb3 $17)) 31... Ra8 $2 {[%emt 0:00:00]} (31... Nxe3 $19 32. Qxe3 Rc8 (32... Qxc7 $2 33. Qxe8 Rxe8 34. Rxe8 $19)) 32. Bg1 {[%emt 0:01:20] Black must now prevent Rxe8.} Rec8 {[%emt 0:02:13]} ({Not} 32... Rxa7 $2 33. Rxe8 h6 34. Rxf8+ (34. c8=R $2 Qxb1 35. Rxf8+ Kh7 $19) (34. c8=Q Kh7 $18) 34... Kh7 35. c8=Q $18 (35. c8=R $2 {loses.} Ra2 $19)) 33. Qb7 {[%emt 0:00:44][%cal Ob1a1]} Nd6 {[%emt 0:00:12][%csl LRb7,LRc7]} 34. Qd5 {[%emt 0:00:33]} Qxc7 {[%emt 0:00:18]} 35. Rec1 {[%emt 0:00:16] Inhibits Qc4.} Qd8 {[%emt 0:01:39] And now ...Rxc1 would win.} (35... Qxc1 $2 {perishes.} 36. Rxc1 Rd8 37. Bb6 $18) 36. Rd1 {[%emt 0:00:12]} Qe8 {[%emt 0:01:05]} 37. Bc5 {[%emt 0:00:41]} Nc4 {[%emt 0:01:30]} 38. Re1 {[%emt 0:00:41]} Qg6 {[%emt 0:00:54]} 39. Bxf8 {[%emt 0:00:22]} Rxf8 {[%emt 0:00:07]} 40. Rxb5 {[%emt 0:00:20]} Ne5 {[%emt 0:00:49]} 41. Qe4 {[%emt 0:00:31]} Qxe4 {[%emt 0:01:19]} 42. Nxe4 {[%emt 0:00:07]} Ra2 {[%emt 0:00:11]} 43. Reb1 {[%emt 0:00:39]} h6 {[%emt 0:01:22]} 44. h3 {[%emt 0:00:19]} Kh7 {[%emt 0:00:06]} 45. Rb7 {[%emt 0:00:24]} f5 {[%emt 0:00:24]} 46. Ng3 {[%emt 0:01:19]} Rf6 {[%emt 0:00:03]} (46... f4 $15 47. Nh5 Kg6 48. Nxg7 Ra6) 47. Rf1 {[%emt 0:00:39]} (47. Nh5 $11 Rg6 48. Re1) 47... Kg6 {[%emt 0:00:56]} 48. Rb5 {[%emt 0:00:16]} f4 {[%emt 0:00:58]} 49. Ne4 {[%emt 0:00:41] [#]} f3 $1 {[%emt 0:00:43]} 50. Rg1 {[%emt 0:00:06]} fxg2+ {[%emt 0:00:31]} 51. Rxg2+ {[%emt 0:00:08]} Rxg2 {[%emt 0:00:02]} 52. Kxg2 $15 {[%emt 0:00:18] KRN-KRN} Re6 {[%emt 0:00:18]} 53. Ng3 {[%emt 0:00:31]} Nf7 {[%emt 0:01:05]} 54. h4 {[%emt 0:00:14]} Kf6 {[%emt 0:00:24]} 55. Nh5+ {[%emt 0:00:21] The position is equal.} Ke7 {[%emt 0:00:20]} 56. Rb7+ {[%emt 0:00:09]} Kf8 {[%emt 0:00:01]} 57. Rb8+ {[%emt 0:00:14] And White is the lucky defender.   Weighted Error Value: White=0.16 (very precise) /Black=0.15 (very precise) .  Mistake:       	White=4     	Black=2      Inaccurate:     	White=2     	Black=3      OK:         	White=23    	Black=19     Best:        	White=1     	Black=2} 1/2-1/2

[Event "Baku Open 2024"]
[Site "Baku"]
[Date "2024.07.05"]
[Round "7.28"]
[White "Amangeldy, Ernur"]
[Black "Galaktionov, Artem"]
[Result "1-0"]
[ECO "B11"]
[WhiteElo "2223"]
[BlackElo "2358"]
[Annotator "TA"]
[PlyCount "101"]
[EventDate "2024.06.29"]
[EventType "swiss"]
[EventCountry "AZE"]
[SourceTitle "playchess.com"]
[Source "ChessBase"]
[SourceQuality "1"]
[TimeControl "5400+30"]

{[%evp 12,101,18,10,22,27,31,0,27,0,0,-9,0,0,0,3,8,-2,-1,-7,0,0,19,-17,-13,-22,-20,-27,-16,-8,-8,0,-4,-6,-6,-55,46,58,55,52,67,64,67,74,70,75,122,60,83,44,43,38,75,50,47,33,60,66,62,45,170,160,189,174,172,145,291,205,439,331,421,156,452,438,551,514,548,408,412,404,1108,1096,1389,1270,29983,29984,29990,29989,29987,29988,29986,1101]} 1. e4 {[%emt 0:00:28]} c6 {[%emt 0:00:07]} 2. Nf3 {[%emt 0:01:20]} d5 {[%emt 0:09:17]} 3. Nc3 {[%emt 0:00:40]} Bg4 {[%emt 0:00:03]} 4. h3 {[%emt 0:00:55]} Bxf3 {[%emt 0:00:18]} 5. Qxf3 {[%emt 0:00:09]} Nf6 {[%emt 0:00:04]} 6. Be2 {[%emt 0:03:45]} e6 {[%emt 0:01:18] B11: Caro-Kann: Two Knights Variation.} 7. O-O {[%emt 0:00:51]} Bc5 {[%emt 0:00:06]} 8. Rd1 {[%emt 0:03:33]} Bd4 {[%emt 0:00:49]} 9. d3 {[%emt 0:06:28]} O-O {[%emt 0:03:26]} 10. Nb1 {[%emt 0:04:30]} Nbd7 {[%emt 0:02:41]} 11. exd5 $146 {[%emt 0:01:44]} ({Predecessor:} 11. c3 Bb6 12. Bf4 Bc7 13. Nd2 Qb8 14. Bxc7 Qxc7 15. d4 Nxe4 16. Nxe4 dxe4 17. Qxe4 {½-½ Yemelin,V (2564)-Yevseev,D (2525) St Petersburg-ch 2007 (9)}) 11... exd5 {[%emt 0:01:10]} 12. c3 {[%emt 0:00:18]} Be5 {[%emt 0:00:19]} 13. d4 {[%emt 0:00:25]} Bd6 {[%emt 0:00:02]} 14. Bd3 {[%emt 0:07:34]} Re8 {[%emt 0:02:31]} 15. Nd2 {[%emt 0:01:33]} Qb6 {[%emt 0:26:42]} 16. b3 {[%emt 0:01:28]} Re7 {[%emt 0:14:19]} 17. Bb2 {[%emt 0:00:55]} Rae8 {[%emt 0:00:09]} 18. c4 {[%emt 0:01:47]} Qa5 {[%emt 0:05:24]} 19. Nf1 {[%emt 0:04:07]} Ne4 {[%emt 0:00:49]} 20. Bxe4 {[%emt 0:02:26]} Rxe4 {[%emt 0:01:24]} 21. Bc3 {[%emt 0:01:34]} Qd8 {[%emt 0:06:52]} 22. cxd5 {[%emt 0:02:48]} cxd5 {[%emt 0:00:34]} 23. Nd2 {[%emt 0:03:29]} (23. Ng3 $11) 23... Re2 {[%emt 0:08:29]} ({Black should play} 23... R4e6 $15) 24. Qxd5 $14 {[%emt 0:05:34]} Nf6 {[%emt 0:06:45]} 25. Qf3 $1 {[%emt 0:02:34]} (25. Qxb7 Nd5 26. Bb2 (26. Qxd5 $2 Bh2+ 27. Kxh2 Qxd5 $19) 26... Qf6 $15) 25... b5 {[%emt 0:00:13]} 26. Nf1 {[%emt 0:02:43]} Nd5 {[%emt 0:02:32]} 27. Ba5 {[%emt 0:01:21]} (27. Qxd5 $2 Bh2+ 28. Nxh2 Qxd5 $19) 27... Qxa5 {[%emt 0:02:36]} 28. Qxd5 {[%emt 0:00:10]} Ba3 {[%emt 0:00:16] [#]} (28... Qd8 $142 29. Qf3 (29. Qxb5 $2 Qf6 $19) 29... h6) 29. Ng3 {[%emt 0:07:48]} (29. Ne3 $1 $16) 29... Rc2 {[%emt 0:00:40]} 30. Qd7 {[%emt 0:03:15]} Rd8 {[%emt 0:00:51]} 31. Qf5 {[%emt 0:01:29]} Rcc8 {[%emt 0:01:53]} 32. Qg4 {[%emt 0:00:57]} g6 {[%emt 0:00:20]} 33. Qe2 {[%emt 0:03:59]} Re8 {[%emt 0:00:55]} 34. Ne4 {[%emt 0:03:48]} Kg7 {[%emt 0:00:30]} 35. Qf3 {[%emt 0:02:38]} Qb6 {[%emt 0:01:02]} (35... Qd8 $14) 36. d5 $18 {[%emt 0:00:27]} f5 {[%emt 0:01:50]} 37. Ng5 {[%emt 0:00:33]} Rc2 {[%emt 0:00:03]} 38. Ne6+ {[%emt 0:00:35]} Kf7 {[%emt 0:00:32]} (38... Kg8 $16 {keeps fighting.} 39. Nd4 Rcc8) 39. Re1 {[%emt 0:01:16]} h6 $2 {[%emt 0:00:49]} (39... Kg8 {was called for.} 40. Re2 Rcc8) 40. Rf1 {[%emt 0:03:17]} Bd6 {[%emt 0:00:44]} 41. h4 $2 {[%emt 0:00:38]} (41. Rac1 $18 Rxa2 42. g4) 41... h5 $2 {[%emt 0:00:26]} (41... Qa5 $16 42. Qe3 Qd2) 42. Rac1 $18 {[%emt 0:01:32]} Rec8 {[%emt 0:00:23]} 43. Rxc2 {[%emt 0:02:32]} Rxc2 {[%emt 0:00:01]} 44. Qd3 {[%emt 0:00:11]} Rc8 {[%emt 0:00:41]} 45. Qd2 {[%emt 0:00:47]} f4 {[%emt 0:01:01]} (45... Be5 $142 46. Rd1 (46. Qh6 Rh8 $18) 46... Qd6) 46. Qb2 $18 {[%emt 0:01:04]} Bf8 {[%emt 0:00:22]} 47. Qh8 {[%emt 0:00:51]} Ke7 {[%emt 0:00:50]} 48. Nxf8 {[%emt 0:00:59]} Rc2 {[%emt 0:00:42]} 49. Re1+ {[%emt 0:01:21]} Kd8 {[%emt 0:00:29]} 50. Nxg6+ {[%emt 0:00:29]} Kc7 {[%emt 0:00:04]} 51. Re7+ {[%emt 0:00:13]} (51. Nxf4 Qxf2+ (51... Rxa2 52. Re7+ Kd6 53. Qe5+ Kc5 54. Nd3#) 52. Kh1 Qxe1+ (52... Qxh4+ 53. Nh3 $17) 53. Kh2 Qxh4+ 54. Nh3 Kb7 (54... Rxa2 55. Qe5+ Kb6 56. Qd6+ Ka5 57. Qc5 $11) 55. Qh7+ Rc7 $17) 1-0

[Event "Baku Open 2024"]
[Site "Baku"]
[Date "2024.07.05"]
[Round "7.29"]
[White "Aliyev, Ravan"]
[Black "Ahmadov, Fariz"]
[Result "0-1"]
[ECO "D26"]
[WhiteElo "2352"]
[BlackElo "2178"]
[Annotator "TA"]
[PlyCount "96"]
[EventDate "2024.06.29"]
[EventType "swiss"]
[EventCountry "AZE"]
[SourceTitle "playchess.com"]
[Source "ChessBase"]
[SourceQuality "1"]
[TimeControl "5400+30"]

{[%evp 12,96,24,37,33,33,41,41,43,18,33,22,36,21,45,36,47,44,35,8,24,24,25,-16,0,0,0,0,0,0,0,0,0,0,0,-1,266,243,240,241,236,-7,0,0,-22,-11,0,-166,-155,-168,-168,-165,-115,-159,-159,-152,-160,-256,-245,-261,-261,-254,-243,-269,-286,-276,-277,-309,-308,-340,-219,-216,0,-363,-380,-375,-356,-487,-510,-484,-506,-637,-600,-637,-637,-746,-505]} 1. d4 {[%emt 0:00:06]} d5 {[%emt 0:02:11]} 2. c4 {[%emt 0:00:05]} dxc4 {[%emt 0:00:15]} 3. Nf3 {[%emt 0:00:10]} Nf6 {[%emt 0:00:22]} 4. e3 {[%emt 0:00:06]} e6 {[%emt 0:00:18]} 5. Bxc4 {[%emt 0:00:13]} Be7 {[%emt 0:01:49]} 6. O-O {[%emt 0:00:27]} O-O {[%emt 0:00:04]} 7. Qe2 {[%emt 0:00:48]} c5 {[%emt 0:00:25]} 8. Rd1 {[%emt 0:02:42]} Qc7 {[%emt 0:00:58]} 9. dxc5 {[%emt 0:05:21]} Bxc5 {[%emt 0:00:10] White is slightly better.} 10. b3 {[%emt 0:01:05]} b6 {[%emt 0:01:20]} 11. Bb2 {[%emt 0:00:22]} Bb7 {[%emt 0:00:18]} 12. Nbd2 {[%emt 0:03:13]} Nbd7 {[%emt 0:01:14][%cal Bb8d7,Bd7f8,Bf8g6,Bg6f4,Bf4e2][%mdl 32]} 13. Rac1 {[%emt 0:00:07]} a5 {[%emt 0:01:32]} 14. a3 {[%emt 0:02:00][%cal Ob3b4]} Qd8 {[%emt 0:00:14]} 15. Nd4 {[%emt 0:21:36]} Qe7 {[%emt 0:05:09]} 16. Nb5 {[%emt 0:00:08]} Rfd8 {[%emt 0:03:18]} 17. e4 {[%emt 0:01:40][%cal Be3e4,Be4e5][%mdl 32]} Nf8 {[%emt 0:00:42]} 18. e5 {[%emt 0:15:43]} Nd5 {[%emt 0:04:55]} 19. g3 {[%emt 0:03:24] Against Nf4} Ng6 {[%emt 0:09:05][%cal Od5f4] [#] Threatens to win with ...Ndf4!} 20. Ne4 {[%emt 0:00:48]} Ndf4 $1 {[%emt 0:02:42]} 21. gxf4 {[%emt 0:18:33]} Qh4 $1 {[%emt 0:00:18]} 22. Nxc5 {[%emt 0:12:32]} Nxf4 {[%emt 0:02:47]} 23. Nxb7 {[%emt 0:00:15]} Qg5+ $2 {[%emt 0:10:43][%mdl 8192] [#]} (23... Nxe2+ $11 {and Black stays safe.} 24. Bxe2 Rd2 25. Rxd2 Qg5+ 26. Kf1 Qxd2) 24. Kf1 $18 {[%emt 0:00:03]} Qg2+ {[%emt 0:00:57]} 25. Ke1 {[%emt 0:00:06]} Nxe2 {[%emt 0:00:47]} 26. Rxd8+ $2 {[%emt 0:06:58]} ({White has to play} 26. Nxd8 $18 Nxc1 27. Bxc1) 26... Rxd8 $11 {[%emt 0:00:03]} 27. Nxd8 {[%emt 0:00:14]} Nxc1 {[%emt 0:01:41]} 28. Bxc1 {[%emt 0:00:50] Be3 is the strong threat.} Qh1+ {[%emt 0:01:15]} 29. Bf1 $2 {[%emt 0:04:24]} (29. Kd2 $11 Qxh2 30. Nd6 Qxf2+ 31. Kd1) 29... Qd5 $1 $19 {[%emt 0:00:27]} 30. Nxf7 {[%emt 0:00:04]} Kxf7 {[%emt 0:00:19]} 31. Be3 {[%emt 0:00:37]} Qxe5 {[%emt 0:00:38]} (31... Qxb3 $19 {Hoping for ...Qb1+.} 32. Bc4 Qb1+ (32... Qxc4 $2 {too greedy.} 33. Nd6+ Kg6 34. Nxc4 $18) 33. Ke2 Qb2+ (33... Qc2+ $2 34. Ke1 $19) 34. Kf1 Qxe5) 32. h3 {[%emt 0:00:33]} Qa1+ {[%emt 0:00:19]} 33. Ke2 {[%emt 0:00:00]} Qb1 {[%emt 0:01:26]} 34. f4 {[%emt 0:01:45]} (34. b4 $17 {keeps fighting.}) 34... Qxb3 {[%emt 0:00:39]} 35. Kf2 {[%emt 0:00:25]} Qc2+ {[%emt 0:01:00]} 36. Be2 {[%emt 0:00:22]} Qc6 {[%emt 0:00:54]} 37. Bh5+ {[%emt 0:00:42]} Ke7 {[%emt 0:01:09]} 38. Be2 {[%emt 0:00:02]} h6 {[%emt 0:00:43]} 39. Nd4 {[%emt 0:00:56]} Qd5 {[%emt 0:00:51]} 40. Nb5 {[%emt 0:00:29]} Qe4 {[%emt 0:00:49]} 41. Nd4 {[%emt 0:00:30]} Qd5 {[%emt 0:01:14]} (41... Qb1 $142 42. Nc6+ Kf8) 42. Nb5 $1 {[%emt 0:00:07]} Qf5 {[%emt 0:00:43]} 43. Kg3 {[%emt 0:00:57]} h5 {[%emt 0:01:10]} 44. h4 {[%emt 0:00:29]} Qe4 {[%emt 0:00:41] Black is clearly winning.} 45. Kf2 {[%emt 0:00:25]} Qh1 {[%emt 0:00:08]} 46. Bxb6 {[%emt 0:00:37]} Qxh4+ {[%emt 0:00:11]} 47. Ke3 {[%emt 0:00:29]} Qg3+ {[%emt 0:00:11]} 48. Ke4 {[%emt 0:00:31]} Qg2+ {[%emt 0:00:57] Weighted Error Value: White=0.31/Black=0.21 (precise) .  Loses game:     	White=1     	Black=1      Missed win:     	White=1     	---        Mistake:       	White=1     	Black=2      Inaccurate:     	White=4     	Black=1      OK:         	White=13    	Black=19     Best:        	White=3     	Black=3      Strong:       	White=1     	Black=3} 0-1

[Event "Baku Open 2024"]
[Site "Baku"]
[Date "2024.07.05"]
[Round "7.30"]
[White "Mammadova, Gulnar"]
[Black "Bizhigitov, Zhangir"]
[Result "1-0"]
[ECO "B51"]
[WhiteElo "2348"]
[BlackElo "2212"]
[Annotator "TA"]
[PlyCount "55"]
[EventDate "2024.06.29"]
[EventType "swiss"]
[EventCountry "AZE"]
[SourceTitle "playchess.com"]
[Source "ChessBase"]
[SourceQuality "1"]
[TimeControl "5400+30"]

{[%evp 9,55,32,40,33,25,28,42,36,30,32,35,28,45,29,34,26,50,23,31,31,35,36,33,18,14,15,6,16,113,108,108,97,368,366,387,362,354,358,506,496,585,579,590,588,595,593,592,585]} 1. e4 {[%emt 0:00:03]} c5 {[%emt 0:03:21]} 2. Nf3 {[%emt 0:00:10]} d6 {[%emt 0:00:30]} 3. Bb5+ {[%emt 0:00:13]} Nd7 {[%emt 0:00:10]} 4. a4 {[%emt 0:00:10]} Ngf6 {[%emt 0:00:35]} 5. Nc3 {[%emt 0:00:12]} g6 {[%emt 0:00:41]} 6. O-O {[%emt 0:00:33]} Bg7 {[%emt 0:00:20]} 7. a5 {[%emt 0:00:07]} a6 {[%emt 0:01:09]} 8. Be2 {[%emt 0:00:05] Weiß steht etwas besser.} O-O {[%emt 0:00:15]} 9. d3 {[%emt 0:00:11]} b5 {[%emt 0:01:46]} 10. axb6 {[%emt 0:00:12]} Nxb6 {[%emt 0:00:32]} 11. Bf4 {[%emt 0:04:17]} a5 {[%emt 0:03:05]} 12. Qd2 {[%emt 0:01:33]} Re8 {[%emt 0:07:31]} 13. h4 {[%emt 0:08:48]} Bb7 {[%emt 0:08:03]} 14. Bh6 {[%emt 0:03:40]} e5 {[%emt 0:04:00][%cal Be7e5,Be5e4][%mdl 32]} 15. Bxg7 {[%emt 0:06:42]} Kxg7 {[%emt 0:00:08]} 16. Nh2 {[%emt 0:01:29][%cal Bf3h2,Bh2g4,Bg4f6][%mdl 32]} d5 {[%emt 0:05:14]} 17. exd5 {[%emt 0:04:29]} Nfxd5 {[%emt 0:15:37]} 18. Nxd5 {[%emt 0:06:12]} Qxd5 {[%emt 0:03:42]} (18... Nxd5 $11 {hält das Gleichgewicht.} 19. Bf3 Bc6) 19. Bf3 $16 {[%emt 0:00:19]} (19. Rxa5 $2 Qxg2#) 19... e4 {[%emt 0:01:32] [#]} 20. Ng4 $1 {[%emt 0:10:46]} Kh8 $2 {[%emt 0:05:38][%mdl 8192] Führt Schwarz ins Verderben.} (20... exf3 $2 21. Qh6+ Kh8 22. Nf6 $18) (20... Qf5 $16 21. Qh6+ Kg8 22. dxe4 Bxe4) 21. Nf6 $18 {[%emt 0:11:35] Weiss will mit Qh6 Matt setzen.} (21. dxe4 $2 Qxd2 22. Nf6 Re6 $19) 21... Qd4 {[%emt 0:10:29]} 22. Nxe8 {[%emt 0:00:56]} Rxe8 {[%emt 0:01:09]} 23. Rfe1 {[%emt 0:01:24]} (23. Qxa5 exf3 24. Qxb6 fxg2 25. Qxb7 (25. Rfe1 $2 Rxe1+ 26. Rxe1 Qxh4 $19) 25... gxf1=Q+ (25... gxf1=N 26. Qxf7 Qg4+ 27. Kxf1 $11) (25... gxf1=R+ 26. Kxf1 Qxh4 27. Qf3 $11) 26. Kxf1 Qxh4 $11) 23... Bc6 {[%emt 0:08:40]} (23... Kg8 $142 24. Qc3 (24. Rxa5 $2 Nc4 $19) (24. Qxa5 e3 $18) 24... Qxc3 25. bxc3 Ra8 26. Bxe4 Bxe4 27. Rxe4 a4) 24. Qxa5 {[%emt 0:04:55] Weiß steht klar auf Gewinn.} e3 {[%emt 0:05:40]} 25. Rxe3 {[%emt 0:11:39]} (25. Bxc6 exf2+ 26. Kf1 fxe1=Q+ 27. Rxe1 Rxe1+ 28. Kxe1 Qxh4+ 29. Kd1 Qf2 $14) 25... Rxe3 {[%emt 0:00:16]} 26. fxe3 {[%emt 0:00:28]} Qxe3+ {[%emt 0:00:16]} 27. Kf1 {[%emt 0:01:36]} Bxf3 {[%emt 0:01:42]} 28. Qc3+ {[%emt 0:00:24] Gewichteter Fehlerwert: Weiß=0.03 (makellos) /Schwarz=0.45.  Verlustzug:     	---       	Schwarz=1     Fehler:       	---       	Schwarz=2     Ungenau:       	Weiß=1     	---        OK:         	Weiß=9     	Schwarz=9     Bester:       	Weiß=6     	---        Stark:        	Weiß=1     	---} (28. Qxb6 $2 {führt zum Matt.} Qe2+ 29. Kg1 Qxg2#) ({Schlechter ist} 28. gxf3 Qxf3+ 29. Ke1 Qg3+ 30. Kd2 Nc4+ 31. dxc4 Qf4+ 32. Ke2 Qe4+ 33. Kd2 Qd4+ 34. Ke2 Qe4+ 35. Kd2 Qf4+ 36. Kd1 Qf3+ 37. Ke1 Qe3+ 38. Kd1 Qf3+ 39. Ke1 Qe3+ 40. Kd1 Qf3+ $11) 1-0